Cogmind - Beta 17.1 @@@ ROGUE MODE // 2026.09.18 @ 21:39:33 Player: Firely Result: Destroyed by G-47 Trooper with Particle Gun Performance ------------- Evolutions (0) 0 Regions Visited (1) 200 Robots Destroyed (13) 65 Value Destroyed (417) 417 Prototype IDs (2) 40 Alien Tech Used (0) 0 Bonus (0) 0 TOTAL SCORE: 722 Bonus ------- None Cogmind --------- Core Integrity 0/250 Matter 270/300 Energy 250/250 System Corruption 0% Temperature Cool (9) Movement Rolling (80) Location -10/Materials Parts ------- > --- POWER (1) -------- Ion Engine > --- PROPULSION (2) --- Wheel Wheel > --- UTILITY (2) ------ Heat Sink Small Storage Unit > --- WEAPON (2) ------- Medium Laser Assault Rifle > --- INVENTORY (8) ---- Ion Engine Wheel Heat Sink High-capacity Matter Pod (200) Structural Scanner Hacking Suite Assault Rifle Hammer Peak State ------------ > --- POWER ------------ Ion Engine > --- PROPULSION ------- Light Treads Light Treads > --- UTILITY ---------- Heat Sink Small Storage Unit > --- WEAPON ----------- Light Assault Rifle Light Assault Rifle > --- INVENTORY -------- Ion Engine Wheel Wheel Heat Sink Large Matter Pod Hacking Suite EM Pulse Gun Small Laser [Rating: 8] Favorites ----------- Power Ion Engine Engine Ion Engine Propulsion Light Treads Treads Light Treads Wheel Wheel Utility Small Storage Unit Device Heat Sink Storage Small Storage Unit Weapon Light Assault Rifle Energy Gun Medium Laser Ballistic Gun Light Assault Rifle Build | -11 -10 ------- Run | Yrd Mat Slots Evolved . | . . Power . | . . Propulsion . | . . Utility . | . . Weapon . | . . Parts Attached 11 | 6 5 Power 1 | 1 . Engine 1 | 1 . Core . | . . Reactor . | . . Propulsion 4 | 2 2 Treads 2 | 2 . Leg . | . . Wheel 2 | . 2 Hover . | . . Flight . | . . Utility 2 | 1 1 Device 1 | . 1 Storage 1 | 1 . Processor . | . . Hackware . | . . Protection . | . . Artifact . | . . Weapon 4 | 2 2 Energy Gun 1 | . 1 Energy Cannon . | . . Ballistic Gun 3 | 2 1 Ballistic Cannon . | . . Launcher . | . . Special Weapon . | . . Impact Weapon . | . . Slashing Weapon . | . . Piercing Weapon . | . . Special Melee Weapon . | . . Unidentified Prototypes . | . . Parts Lost . | . . Power . | . . Propulsion . | . . Utility . | . . Weapon . | . . Highest Loss Streak . | . . To Critical Strikes . | . . Average Backups 6 | 3 7 Power . | . 1 Propulsion 1 | 1 1 Utility 2 | . 2 Weapon 1 | 1 1 Tool/Special . | . . Unused Backups 12 | . 12 Power 2 | . 2 Propulsion 1 | . 1 Utility 5 | . 5 Weapon 4 | . 4 Tool/Special . | . . Average Slot Usage (%) 98 | . 98 Engine 14 | . 14 Treads 21 | . 21 Wheel 6 | . 6 Device 12 | . 12 Storage 14 | . 14 Energy Gun 7 | . 7 Ballistic Gun 20 | . 20 Peak Build Rating 8 | 6 8 Average Rating 7 | 4 7 On Entrance 3 | . 6 Avg Prop Armor Cover (%) . | . . Naked Turns . | . . Heaviest Build 15 | 12 15 Greatest Support 40 | 40 40 Greatest Overweight (x) 1 | 1 . Average Overweight (x) . | . . Largest Inventory Capacity 8 | 8 8 Average Capacity 7 | 7 8 Most Carried 8 | 4 8 Average Carried 6 | 3 7 Final Capacity 8 | 8 8 Final Carried 8 | 4 8 Class Distribution -------------------- 100% | Mutant Dominant Class ---------------- Mutant | -10/Materials Resources | -11 -10 ----------- Run | Yrd Mat Matter Collected 768 | 239 529 Remotely . | . . Salvage Created 505 | . 505 Parts 31 | . 31 Haulers Intercepted . | . . Recyclers Shooed . | . . Parts Field Recycled . | . . Retrieved Matter . | . . Parts Self-Destructed . | . . Prevented . | . . Parts Restored . | . . Kills | -11 -10 ------- Run | Yrd Mat Combat Hostiles Destroyed 11 | . 11 Guns 11 | . 11 Classes Destroyed 3 | . 3 Worker 1 | . 1 Operator 1 | . 1 Grunt 11 | . 11 Best Kill Streak 3 | . 3 Combat Bots Only 3 | . 3 Max Kills in Single Turn 1 | . 1 Gunslinging . | . . Exploded . | . . Melee . | . . Uniques/NPCs Destroyed . | . . Combat | -11 -10 -------- Run | Yrd Mat Hostile Shots Fired 78 | . 78 Missed 21 | . 21 Hits 57 | . 57 Projectile 57 | . 57 Critical Strikes 1 | . 1 Damage Taken 690 | . 690 Core 259 | . 259 Absorbed by Shields . | . . Core Remaining (%) 100 | 100 . Volleys Fired 69 | . 69 Largest 2 | . 2 Hottest 70 | . 70 Shots Fired 138 | . 138 Gun 138 | . 138 Cannon . | . . Launcher . | . . Special . | . . Kinetic 108 | . 108 Thermal 30 | . 30 Explosive . | . . Electromagnetic . | . . Robot Hit Streak 8 | . 8 Robot Miss Streak 4 | . 4 Penetration Max . | . . Secondary Targets . | . . Shots Hit Robots 91 | . 91 Core Hits 35 | . 35 Critical Kills . | . . Critical Parts Destroyed . | . . Critical Strikes 3 | . 3 Burn 3 | . 3 Melee Attacks . | . . Impact . | . . Slashing . | . . Piercing . | . . Sneak Attacks . | . . Combat Hostiles . | . . Follow-up Attacks . | . . Damage Inflicted 863 | . 863 Guns 863 | . 863 Cannons . | . . Explosions . | . . Melee . | . . Ramming . | . . Kinetic 578 | . 578 Thermal 285 | . 285 Explosive . | . . Electromagnetic . | . . Impact . | . . Slashing . | . . Piercing . | . . Highest Corruption . | . . Average Corruption . | . . Corruption Purged . | . . Corruption Blocked . | . . Overload Shots . | . . Overflow Damage . | . . Projectiles . | . . Explosions . | . . Melee . | . . Knockbacks . | . . Impact . | . . Kinetic . | . . Secondary . | . . Self-Inflicted Damage . | . . Shots . | . . Rammed . | . . Targets Rammed . | . . Kicked . | . . Crushed . | . . Highest Temperature 32 | . 32 Average Temperature 11 | . 11 Received Heat Transfer 411 | . 411 Siege Activations . | . . Martial Activations . | . . Shielding Activations . | . . Robots Disrupted . | . . Combat Hostiles . | . . Robots Corrupted . | . . Combat Hostiles . | . . Parts Fried . | . . Impact Corruptions . | . . Robots Melted . | . . Combat Hostiles . | . . Parts Melted 2 | . 2 Heat Transferred 1073 | . 1073 Parts Sabotaged . | . . Parts Stolen . | . . Parts Stripped . | . . Power Chain Reactions . | . . Alert | -11 -10 ------- Run | Yrd Mat Maximum Alert Level . | . . Low Security (%) 100 | 100 100 Level 1 . | . . Level 2 . | . . Level 3 . | . . Level 4 . | . . Level 5 . | . . High Security . | . . Max Security . | . . Peak Influence 65 | . 65 Initial . | . . Average 17 | . 19 Influence Increases 321 | . 321 Destroy 0b10 Robot/C 220 | . 220 Destroy 0b10 Robot/NC 10 | . 10 Destroy Leader 50 | . 50 Successful Hack 11 | . 11 Lose Combat Pursuer 30 | . 30 Influence Decreases 321 | . 321 Time Decay 321 | . 321 Squads Dispatched 3 | . 3 Investigation 1 | . 1 Extermination . | . . Reinforcement 2 | . 2 Assault . | . . Garrison . | . . Intercept . | . . Searches Triggered . | . . Construction Impeded . | . . Haulers Reinforced . | . . Active Scanning Responses . | . . Cargo Convoy Interrupts . | . . Stealth | -11 -10 --------- Run | Yrd Mat Distress Signals 2 | . 2 Communications Jammed . | . . Distress Signals . | . . Times Spotted 21 | . 21 Peak Tracking Total 3 | . 3 Tactical Retreats 2 | . 2 Traps | -11 -10 ------- Run | Yrd Mat Traps Triggered 1 | . 1 Indirectly . | . . Trap Hack Attempts . | . . Triggered . | . . Disarmed . | . . Reprogrammed . | . . Reused . | . . Traps Extracted . | . . Installed . | . . Triggered . | . . Machines | -11 -10 ---------- Run | Yrd Mat Machines Disabled . | . . Max in Single Turn . | . . Machines Repaired . | . . Machines Dismantled . | . . Machines Sabotaged . | . . Overloaded Fab Kills . | . . Hacking | -11 -10 --------- Run | Yrd Mat Machines Accessed 4 | . 4 Terminals 4 | . 4 Fabricators . | . . Repair Stations . | . . Recycling Units . | . . Scanalyzers . | . . Garrison Access . | . . Total Hacks 9 | . 9 Successful 5 | . 5 Failed 4 | . 4 Catastrophic . | . . Database Lockouts . | . . Manual 4 | . 4 Terminals 9 | . 9 Fabricators . | . . Repair Stations . | . . Recycling Units . | . . Scanalyzers . | . . Garrison Access . | . . Terminal Hacks 5 | . 5 Prototype ID Bank 1 | . 1 Terminal Index 1 | . 1 Alert Level 1 | . 1 Dispatch Records 2 | . 2 Fabricator Hacks . | . . Repair Station Hacks . | . . Recycling Unit Hacks . | . . Scanalyzer . | . . Garrison Access Hacks . | . . Unauthorized Hacks . | . . Terminals . | . . Fabricators . | . . Repair Stations . | . . Recycling Units . | . . Scanalyzers . | . . Garrison Access . | . . Data Cores Recovered . | . . Used . | . . Hacking Detections 2 | . 2 Full Trace Events . | . . Feedback Events . | . . Feedback Blocked . | . . Robot Schematics Acquired . | . . Robots Built . | . . Authchips . | . . Time . | . . Total Robot Build Rating . | . . Part Schematics Acquired . | . . Parts Built . | . . Authchips . | . . Time . | . . Total Part Build Rating . | . . Part Studies Acquired . | . . Parts Repaired . | . . Time . | . . Parts Recycled . | . . Recycled Matter . | . . Retrieved Matter . | . . Retrieved Components . | . . Parts Scanalyzed . | . . Part Schematics Acquired . | . . Parts Damaged . | . . Bothacking | -11 -10 ------------ Run | Yrd Mat Used RIF Installer . | . . Robots Hacked . | . . Non-combat . | . . Combat . | . . Robot Hacks Applied . | . . Relay Couplers Released . | . . Fabnet Peak Effective % . | . . Robots Rewired . | . . Allies Hacked . | . . Hacks Repelled . | . . Allies | -11 -10 -------- Run | Yrd Mat Total Allies . | . . Largest Group . | . . Highest-Rated Group . | . . Highest-Rated Ally . | . . Total Orders . | . . Ally Attacks . | . . Total Damage . | . . Kills . | . . Allies Corrupted . | . . Allies Melted . | . . Intel | -11 -10 ------- Run | Yrd Mat Active Infowar (turns) . | . . Robot Analysis Total . | . . Derelict Logs Recovered . | . . Drone Launches . | . . Drone Recoveries . | . . Exploration | -11 -10 ------------- Run | Yrd Mat Turns Passed 1171 | 92 1079 Spaces Moved 630 | 52 578 Core 4 | 4 . Treads 429 | 48 381 Legs . | . . Wheels 197 | . 197 Hover . | . . Flight . | . . Fastest Speed 50 | 50 80 Average Speed 134 | 152 132 Slowest Speed 160 | 160 160 Overloaded Moves . | . . Propulsion Burnouts . | . . Robots Hopped . | . . Potential Cave-ins . | . . Cave-ins Triggered . | . . Exploration Rate (%) 40 | 4 77 Regions Visited 1 Branch Regions . Pre-discovered Areas . | . . Known Exits Taken . | . . Unknown Exits Taken 1 | 1 . Scrap Searched . | . . Spaces Dug . | . . Terrain Destroyed . | . . Melee . | . . Projectile . | . . AOE . | . . Terrain Rammed . | . . Walls Destroyed . | . . Machines Disabled . | . . Actions | -11 -10 --------- Run | Yrd Mat Total 835 | 62 773 Wait 101 | . 101 Move 629 | 51 578 Hop . | . . Pick Up 16 | 5 11 Fast Attach 6 | 5 1 Attach 2 | 1 1 Detach 1 | . 1 Swap 3 | . 3 Drop 8 | . 8 Fire 69 | . 69 Melee . | . . Ram . | . . Kick . | . . Crush . | . . Escape Stasis . | . . Rewire . | . . Trap . | . . Miscellaneous . | . . Route ------- -11/Scrapyard -10/Materials (discovered 4 exits: [*Mat x2] / [*Min x2]) History --------- Turn | Location | Event 21 | -11/Scrapyard | Discovered new exit (range 14) 93 | -11/Scrapyard | Entered Materials 325 | -10/Materials | Build established: Mutant 449 | -10/Materials | Core integrity fell below 50% 467 | -10/Materials | Discovered new exit (range 11) 595 | -10/Materials | Discovered new exit (range 14) 684 | -10/Materials | Core integrity fell below 20% 718 | -10/Materials | Discovered new exit (range 9) 1014 | -10/Materials | Discovered new exit (range 8) 1172 | -10/Materials | Destroyed by G-47 Trooper with Particle Gun Last Messages --------------- TERMINAL." ALERT: Hostiles spotted, dispatching reinforcements to Terminal M006. K-01 Serf suffers critical hit (Burn). K-01 Serf destroyed. Acquired 21 matter. Acquired Wheel. Dropped Lgt. Assault Rifle. Acquired Assault Rifle. Destroyed Datajack. G-34 Mercenary suffers critical hit (Burn). G-34 Mercenary destroyed. Acquired 47 matter. EXIT=FOUND K-01 Serf cleans the Neutrino Reactor. Connecting with Terminal... Acquired 9 matter. Acquired 20 matter. Connecting with Terminal... K-01 Serf cleans the Neutrino Reactor. Map ----- +----------------------------------------------------+ | ??# #??# ## ###########??????????? | | ??# #??# """ + ??????? | | ??# #???# """ ## ^ ??????? | | ??# #???# """ ## #######+####?????????? | | ####### ####???# ### ##????????????????????? | | ## #?##### """ #?# #?????????????????????? | | "" ## #?# # """ #?# #?????????????????????? | | "" + #?# # """ #?# #?????????????????????? | | "" ## #?# # = #?# #?????????????????????? | | ## #?# ###+###### ###???????????????????? | | "" ## #?# #???????????????????? | | "" ## #?# #???????????????????? | | "" ## #?# ########????????????? | | ## #?# ####### # """ #????????????? | | #+#### ### # # # """ #????????????? | | # # # """ #????????????? | | # """ + + #????????????? | | # """!# # * #????????????? | | ################ # """=# # #????????????? | | #??????????# # """ # ########????????????? | | #??????????# # # #???????????????????? | | T ########???# ####### #???????????????????? | | ## #???# #?????# #???????????????????? | | ## #???# #?????# #???????????????????? | | ## ### """ #???# #######gg #############???????? | | ## #?# """ ##### @ #???????? | | # #?# """ + #???????? | | # #?# """ ##### "T" """ """ #???????? | | # #?# ######### """ """ #???????? | | /# ######+## # k""" """ #???????? | | # ????????? | | # < ????????? | | # ????????? | | # ####+## #######+######### ??????????? | | # #????## "|"|" #??#] #??????? ??????????? | | %+ #?????#""|"|""#??# #???????? ""?????????? | | # #?????########???# #?????????"??????????? | | ## ##???????????????# #????????????????????? | | # #???????????????# #????????????????????? | | # #????############ #????????????????????? | | # " #????# ## #????????????????????? | | + #????# ######+#????????????????????? | | # !#????# #????# #????????????????????? | | ## ##????# ###### ######+??????????????? | | ## #?????# + ???????? | | ## #?????# ###### ???????? | | ## #?????# #????######+######??????????? | | ## #?????# #???????????""??????????????? | | ## ##########+#############??????"?????????????? | | # #????????????????????? | +----------------------------------------------------+ Best States ------------- Heat Dissipation 35 Energy Generation 10 Energy Capacity 250 Matter Stores 300 Matter Capacity 300 Sight Range 16 Terrain Scan Density 10 Evasion (%) 44 Recoil Reduction 2 Item Schematics ----------------- None Robot Schematics ------------------ None Fabricated ------------ Nothing Repaired ---------- Nothing Studied --------- None Alien Tech Used ----------------- None Achievements -------------- None Challenges ------------ None Game ------ Seed RemoteDisassembledSlayer Manual? 0 Play Time 00:14:15 Cumulative 57.2 hours Start 2026.09.18 @ 21:27:30 End 2026.09.18 @ 21:39:33 Sessions 1 Manual Loads 0 Difficulty Rogue Special Mode None Game No. 29 Rogue 29 Adventurer 0 Explorer 0 Win Type - Total 1 Types 1/0/0/0/0/0/0/0/0/0 Lore% 35 Gallery% 25 Achievement% 24 Wizard Run 0 Options --------- Layout 1 ASCII 0 Keyboard 0 Movement Numpad Keybinds 0 Fullscreen 1 Font 32/SmallcapsGlow Map View 50x40 Zoom Use 0% Tactical HUD 0 Map Filters NONE Filters NONE Steam 1 RUN: 81bfa3c0-6eb3-4a52-8f17-4d8b77855e48